[Event "SixDays Budapest GM-A January 2024"]
[Site "Budapest"]
[Date "2024.01.30"]
[Round "6.5"]
[White "Berczes, David"]
[Black "Karamsetty, Jeevan"]
[Result "1-0"]
[ECO "B08"]
[WhiteElo "2439"]
[BlackElo "2211"]
[Annotator "TA"]
[PlyCount "45"]
[EventDate "2024.01.26"]
[EventType "tourn"]
[EventCountry "HUN"]
[SourceTitle "playchess.com"]
[Source "ChessBase"]
[SourceQuality "1"]
[TimeControl "5400+30"]

{[%evp 11,45,31,37,38,33,14,36,43,10,35,33,51,47,47,40,17,18,22,35,23,25,26,21,0,0,0,60,43,198,206,322,299,1791,1788,29990,29991]} 1. d4 {[%emt 0:07:43]} g6 {[%emt 0:00:08]} 2. e4 {[%emt 0:00:19]} d6 {[%emt 0:00:07]} 3. Nc3 {[%emt 0:00:29]} Bg7 {[%emt 0:00:08]} 4. Nf3 {[%emt 0:00:10]} Nf6 {[%emt 0:00:08]} 5. Be3 {[%emt 0:00:13]} O-O {[%emt 0:00:23]} 6. Qd2 {[%emt 0:00:22]} a6 {[%emt 0:00:41]} 7. Bh6 {[%emt 0:00:42]} b5 {[%emt 0:00:52][%cal Bb7b5,Bb5b4][%mdl 32]} 8. Bxg7 {[%emt 0:01:42]} Kxg7 {[%emt 0:00:06]} 9. Bd3 {[%emt 0:00:05] White is slightly better.} Nc6 {[%emt 0:18:22]} 10. e5 {[%emt 0:02:02]} dxe5 {[%emt 0:07:18]} 11. dxe5 {[%emt 0:00:10]} Ng4 {[%emt 0:00:52]} 12. O-O-O $1 {[%emt 0:02:45]} b4 {[%emt 0:13:44] [#]} 13. Rhe1 $1 {[%emt 0:04:23][%cal Oh2h3,Bh1e1,Be1e5,Be5e7][%mdl 32] h3! would now be deadly.} Rb8 $1 {[%emt 0:03:30]} (13... bxc3 $6 14. Qxc3 Qe8 15. e6+ Nf6 16. exf7 Rxf7 17. Ng5 $16 (17. Be4 Bb7 $14)) 14. Na4 {[%emt 0:21:50]} Qd5 {[%emt 0:04:00][%csl LRa2,LRe5]} 15. b3 $36 {[%emt 0:00:52][%mdl 2048] Hoping for Qf4. White is pushing.} Ncxe5 {[%emt 0:09:26]} 16. Nxe5 {[%emt 0:02:46]} Nxe5 {[%emt 0:00:07] [#]} 17. Bxa6 {[%emt 0:05:45]} Qxg2 {[%emt 0:05:54]} 18. Rxe5 {[%emt 0:13:44]} (18. Bxc8 Nf3 $17 (18... Qxh2 $2 19. Rh1 $18) (18... Qxh2 $2 19. Rh1 $18)) 18... Bxa6 {[%emt 0:03:25]} (18... Qxh2 $11 19. Rxe7 Bxa6 20. Qd4+ Kg8) 19. Qf4 $1 $14 {[%emt 0:05:23][%cal Oa4c5]} Bb5 $2 {[%emt 0:12:25] [#] Black cannot hold the game after this.} (19... Bc8 $14) 20. Nc5 $1 $18 {[%emt 0:02:12]} Rb6 {[%emt 0:00:45]} (20... Qh3 {is a better defense.} 21. Rxe7 Qc3) 21. Rxe7 {[%emt 0:02:28][%cal Od1d8] And now Rd8! would win.} Kg8 $2 {[%emt 0:07:49] [#]} (21... Qh3 22. Qxb4 (22. Rxc7 Rf6 $18) 22... Qh6+ 23. Kb2 Kg8) 22. Rd8 $3 {[%emt 0:03:22][%mdl 512] Intending Rxf8+ and mate.} Bc4 {[%emt 0:08:00]} (22... Be8 23. Rdxe8) 23. bxc4 {[%emt 0:01:25] Weighted Error Value: White=0.02 (flawless) /Black=0.56.  Mistake:       	---       	Black=4      Inaccurate:     	---       	Black=1      OK:         	White=5     	Black=6      Best:        	White=1     	Black=1      Strong:       	White=3     	Black=1      Brilliant:      	White=1     	---} 1-0

[Event "SixDays Budapest GM-A January 2024"]
[Site "Budapest"]
[Date "2024.01.31"]
[Round "7.1"]
[White "Karamsetty, Jeevan"]
[Black "Can, Isik"]
[Result "0-1"]
[ECO "B23"]
[WhiteElo "2211"]
[BlackElo "2500"]
[Annotator "TA"]
[PlyCount "74"]
[EventDate "2024.01.26"]
[EventType "tourn"]
[EventCountry "HUN"]
[SourceTitle "playchess.com"]
[Source "ChessBase"]
[SourceQuality "1"]
[TimeControl "5400+30"]

{[%evp 10,74,31,0,4,6,17,0,-6,-20,-16,-17,-13,-14,-6,-25,13,-3,11,10,17,19,11,0,9,-70,-60,-86,-85,-79,-70,-79,-64,-95,-94,-89,-77,-75,-91,-108,-100,-109,-102,-179,-148,-202,-203,-285,-310,-313,-307,-333,-345,-395,-330,-333,-358,-29985,-29986,-29988,-29975,-5206,-2067,-1049,-968,-964,-749]} 1. e4 {[%emt 0:03:46]} c5 {[%emt 0:05:26]} 2. Nc3 {[%emt 0:00:09]} a6 {[%emt 0:00:04]} 3. g3 {[%emt 0:00:15]} b5 {[%emt 0:00:53]} 4. Bg2 {[%emt 0:00:06]} Bb7 {[%emt 0:00:03]} 5. d3 {[%emt 0:00:14]} e6 {[%emt 0:00:23]} 6. Nh3 {[%emt 0:00:27]} Be7 {[%emt 0:03:00]} 7. O-O {[%emt 0:00:21]} Nc6 {[%emt 0:03:56]} 8. Be3 {[%emt 0:15:30]} Qc7 {[%emt 0:08:50] The position is equal.} 9. a4 {[%emt 0:13:40]} b4 {[%emt 0:00:47]} 10. Nb1 {[%emt 0:00:17]} Nf6 {[%emt 0:04:45]} 11. Nd2 {[%emt 0:00:43]} a5 {[%emt 0:02:54]} 12. Re1 {[%emt 0:11:38]} h5 {[%emt 0:08:36]} 13. Bf4 {[%emt 0:03:50]} e5 {[%emt 0:03:05]} 14. Bg5 {[%emt 0:00:52]} Ng4 {[%emt 0:02:30]} 15. Bxe7 {[%emt 0:03:09]} Nxe7 {[%emt 0:00:01]} 16. Nc4 {[%emt 0:03:28]} d6 {[%emt 0:01:08]} 17. Ne3 {[%emt 0:02:31]} ({White should try} 17. f3 $11 Nf6 18. f4) 17... Nxe3 $15 {[%emt 0:01:54]} 18. Rxe3 {[%emt 0:00:50]} f6 {[%emt 0:04:07]} 19. f4 {[%emt 0:07:22]} O-O-O {[%emt 0:00:33]} 20. c3 {[%emt 0:01:38]} Qb6 {[%emt 0:00:11]} 21. Nf2 {[%emt 0:03:35]} Kb8 {[%emt 0:01:04]} 22. Rc1 {[%emt 0:04:34]} exf4 {[%emt 0:08:32] Black is more active.} 23. gxf4 g5 24. fxg5 {[%emt 0:06:51]} fxg5 {[%emt 0:00:42]} 25. d4 {[%emt 0:02:56]} Ng6 {[%emt 0:00:42]} 26. cxb4 {[%emt 0:05:56]} (26. Qd2 $17 {was worth a try.}) 26... cxb4 $19 {[%emt 0:00:25]} ({Worse is} 26... Qxb4 27. e5 Qxd4 28. Rb3 $16) ({And not} 26... cxd4 27. Rb3 Ne5 (27... axb4 $2 {too greedy.} 28. Rc4 $18) 28. bxa5 $16) (26... axb4 27. Qd2 $17) 27. Rg3 {[%emt 0:01:29]} (27. Rf3 $17) 27... Nf4 {[%emt 0:05:05]} 28. Nh3 {[%emt 0:03:18]} (28. Qd2 $142) 28... Nxg2 {[%emt 0:06:14]} 29. Rxg2 {[%emt 0:00:04]} g4 {[%emt 0:00:24]} 30. Nf2 {[%emt 0:00:32]} Rdf8 {[%emt 0:01:01]} 31. Qd3 {[%emt 0:01:01]} Rf7 {[%emt 0:03:30]} 32. Qb5 {[%emt 0:02:09]} Qxd4 {[%emt 0:00:36]} 33. Qxa5 $2 {[%emt 0:00:08] [#]} (33. Rd1 $19 Qe3 (33... Qxb2 $2 34. Qxa5 Rc7 35. Nxg4 $19) 34. Qd3 Qxd3 35. Nxd3) 33... Rhf8 {[%emt 0:00:43]} 34. Rf1 {[%emt 0:03:04]} Qxe4 {[%emt 0:00:38][%csl Gb7][%cal Re4g2]} 35. Qd8+ {[%emt 0:00:49]} Rxd8 {[%emt 0:00:05]} (35... Ka7 $142 36. Qa5+ Kb8 37. Qd8+ Rxd8 38. Nxe4 Rxf1+ 39. Kxf1 Bxe4) 36. Nxe4 {[%emt 0:00:02]} Rxf1+ {[%emt 0:00:05]} 37. Kxf1 {[%emt 0:00:04]} Bxe4 {[%emt 0:00:04] Weighted Error Value: White=0.42/Black=0.21 (precise) .  Mistake:       	White=5     	---        Inaccurate:     	White=2     	Black=1      OK:         	White=9     	Black=14     Best:        	---       	Black=2} 0-1

[Event "SixDays Budapest GM-A January 2024"]
[Site "Budapest"]
[Date "2024.01.31"]
[Round "7.2"]
[White "Castellanos Rodriguez, Renier"]
[Black "Berczes, David"]
[Result "0-1"]
[ECO "D02"]
[WhiteElo "2468"]
[BlackElo "2439"]
[Annotator "TA"]
[PlyCount "108"]
[EventDate "2024.01.26"]
[EventType "tourn"]
[EventCountry "HUN"]
[SourceTitle "playchess.com"]
[Source "ChessBase"]
[SourceQuality "1"]
[TimeControl "5400+30"]

{[%evp 20,108,-7,0,0,-18,-2,-26,-15,-25,-5,-12,0,0,0,-15,0,-12,21,19,30,22,45,24,43,26,24,42,62,69,63,56,70,13,4,9,36,0,31,36,45,0,15,0,0,0,0,0,0,-10,0,0,0,0,2,4,2,0,0,0,0,0,-9,-14,-14,-64,-64,-70,-66,-190,-229,-199,-207,-206,-154,-735,-711,-792,-694,-629,-500,-1648,-1481,-2642,-2529,-2375,-4634,-4627,-4627,-4627,-4610]} 1. d4 {[%emt 0:00:04]} d5 {[%emt 0:20:19]} 2. Nf3 {[%emt 0:00:38]} Nf6 {[%emt 0:00:05]} 3. c4 {[%emt 0:00:07]} e6 {[%emt 0:03:45]} 4. cxd5 {[%emt 0:07:21]} exd5 {[%emt 0:05:43]} 5. Nc3 {[%emt 0:00:22]} c6 {[%emt 0:00:26]} 6. Bg5 {[%emt 0:02:45]} h6 {[%emt 0:00:57]} 7. Bh4 {[%emt 0:00:19]} Bf5 {[%emt 0:02:12]} 8. e3 {[%emt 0:00:44]} Nbd7 {[%emt 0:00:08]} 9. Bd3 {[%emt 0:00:22] D35: Queen's Gambit Declined: Exchange Variation.} Bxd3 {[%emt 0:00:06]} 10. Qxd3 {[%emt 0:00:03]} Bd6 {[%emt 0:00:59]} 11. O-O {[%emt 0:06:47]} O-O {[%emt 0:03:35]} 12. Nd2 {[%emt 0:01:30]} Re8 $146 {[%emt 0:08:21]} ({Predecessor:} 12... Qc7 13. Bg3 Bxg3 14. hxg3 a5 15. b3 Qd6 16. Qf5 Rfe8 17. Qf4 Qe6 18. Rac1 Ne4 19. Ncxe4 dxe4 {½-½ Jakab,A (2244)-Pataki,G (2249) HUN-ch U16 Paks 1999 (4)}) 13. Rae1 {[%emt 0:01:41]} Qb6 {[%emt 0:09:41]} 14. Rb1 {[%emt 0:10:18]} a5 {[%emt 0:03:13]} 15. Rfc1 {[%emt 0:02:37]} Qd8 {[%emt 0:09:28]} 16. Nf1 {[%emt 0:03:23]} Nf8 {[%emt 0:13:35]} 17. f3 {[%emt 0:03:47]} Ne6 {[%emt 0:00:20]} 18. Rc2 {[%emt 0:02:10]} g5 {[%emt 0:04:16]} 19. Bf2 {[%emt 0:02:39]} Bf8 {[%emt 0:08:07]} 20. Rd1 {[%emt 0:04:51]} Qd7 {[%emt 0:01:16]} 21. Ng3 {[%emt 0:04:54]} Rad8 {[%emt 0:00:29]} 22. Na4 {[%emt 0:05:51]} b5 {[%emt 0:01:15]} 23. Nc3 {[%emt 0:00:07]} Rc8 {[%emt 0:01:39]} 24. Nf5 {[%emt 0:01:52]} h5 {[%emt 0:01:54]} 25. h3 {[%emt 0:03:55]} h4 {[%emt 0:00:14]} 26. Rcd2 {[%emt 0:05:39]} (26. Rdc1 $14) 26... Nh5 $11 {[%emt 0:00:44]} 27. Ne2 $1 {[%emt 0:02:09]} Neg7 {[%emt 0:00:41]} 28. Nh6+ {[%emt 0:04:54]} Kh8 {[%emt 0:00:01]} 29. Ng4 {[%emt 0:00:34]} Bd6 {[%emt 0:00:30]} 30. e4 {[%emt 0:02:50]} f5 {[%emt 0:00:44]} 31. Ne5 {[%emt 0:00:36]} dxe4 {[%emt 0:00:45]} 32. Qe3 {[%emt 0:02:32]} f4 {[%emt 0:00:31]} 33. Qxe4 {[%emt 0:00:31]} Qf5 {[%emt 0:00:29]} 34. Nc3 {[%emt 0:01:54]} Ng3 {[%emt 0:00:30]} 35. Qxf5 {[%emt 0:06:01]} N7xf5 {[%emt 0:00:01]} 36. Nf7+ {[%emt 0:00:37]} Kg8 {[%emt 0:00:07]} 37. Nxg5 {[%emt 0:00:49]} Bb4 {[%emt 0:01:10]} 38. Nge4 {[%emt 0:01:35]} Nxe4 {[%emt 0:00:33]} 39. fxe4 {[%emt 0:00:19]} Bxc3 {[%emt 0:00:13]} 40. bxc3 {[%emt 0:00:20]} Rxe4 {[%emt 0:00:03]} 41. d5 {[%emt 0:00:22]} Ne3 {[%emt 0:00:24]} 42. Bxe3 {[%emt 0:03:43]} ({Better is} 42. Re1 $11 cxd5 43. Bxe3 Rxe3 44. Rf1) 42... fxe3 $15 {[%emt 0:00:05]} 43. Re2 {[%emt 0:00:05]} Rd8 $1 {[%emt 0:01:37]} 44. Rd3 {[%emt 0:01:04]} (44. g4 $15) 44... Rxd5 $19 {[%emt 0:00:19]} ({Weaker is} 44... cxd5 45. Rexe3 Rxe3 46. Rxe3 $11) 45. Rdxe3 {[%emt 0:00:08]} Rxe3 {[%emt 0:00:41]} 46. Rxe3 {[%emt 0:00:05]} Rd2 {[%emt 0:00:32]} 47. Re6 $2 {[%emt 0:03:16]} (47. a3 $17) 47... Rxa2 $19 {[%emt 0:00:23]} 48. Rxc6 {[%emt 0:00:04]} a4 {[%emt 0:00:31]} 49. Ra6 {[%emt 0:00:54]} Kf7 {[%emt 0:00:51]} 50. g4 {[%emt 0:03:18]} (50. Kf1 $142 Rc2 51. Ra7+ Ke6 52. Ra5) 50... hxg3 $19 {[%emt 0:00:14]} 51. h4 {[%emt 0:00:06]} Rc2 {[%emt 0:00:32]} 52. Ra5 {[%emt 0:00:15]} Kg6 {[%emt 0:00:42]} ({Not} 52... Rxc3 53. Rxb5 Kg8 54. Rg5+ Kh8 55. Ra5 $11) 53. h5+ {[%emt 0:02:34]} Kxh5 {[%emt 0:00:21]} 54. Rxb5+ {[%emt 0:00:04]} Kg4 {[%emt 0:00:03]} 0-1

[Event "SixDays Budapest GM-A January 2024"]
[Site "Budapest"]
[Date "2024.01.31"]
[Round "7.3"]
[White "Pribelszky, Bence"]
[Black "Barrish, Daniel"]
[Result "1/2-1/2"]
[ECO "A08"]
[WhiteElo "2371"]
[BlackElo "2347"]
[Annotator "TA"]
[PlyCount "104"]
[EventDate "2024.01.26"]
[EventType "tourn"]
[EventCountry "HUN"]
[SourceTitle "playchess.com"]
[Source "ChessBase"]
[SourceQuality "1"]
[TimeControl "5400+30"]

{[%evp 29,104,0,0,0,0,0,55,0,0,-38,56,0,39,47,44,44,41,54,54,20,71,68,47,3,62,58,47,38,63,54,56,59,49,43,41,53,51,52,52,52,52,52,52,20,20,0,0,0,0,0,0,0,0,0,0,0,0,0,6,0,0,0,0,0,0,0,0,0,0,0,0,0,0,0,0,0,0]} 1. Nf3 {[%emt 0:03:36]} d5 {[%emt 0:12:46]} 2. g3 {[%emt 0:00:05]} c5 {[%emt 0:00:26]} 3. Bg2 {[%emt 0:00:07]} Nf6 {[%emt 0:00:07]} 4. O-O {[%emt 0:00:06]} e6 {[%emt 0:00:06]} 5. c4 {[%emt 0:00:49]} d4 {[%emt 0:00:18]} 6. e3 {[%emt 0:00:07]} Nc6 {[%emt 0:00:29]} 7. exd4 {[%emt 0:00:08]} cxd4 {[%emt 0:00:07]} 8. d3 {[%emt 0:00:10]} Be7 {[%emt 0:01:44] A13: English Opening: 1...e6.} 9. Re1 {[%emt 0:06:06]} Nd7 {[%emt 0:02:42]} 10. Na3 {[%emt 0:01:47]} e5 {[%emt 0:07:29]} 11. Rb1 {[%emt 0:01:53]} O-O {[%emt 0:01:34]} 12. Nc2 {[%emt 0:07:07]} a5 {[%emt 0:00:52]} 13. b3 {[%emt 0:12:17]} Rb8 {[%emt 0:07:38]} 14. a3 {[%emt 0:07:40]} b5 {[%emt 0:02:36]} 15. cxb5 {[%emt 0:17:21]} Rxb5 {[%emt 0:00:51]} 16. Nd2 {[%emt 0:00:48]} Qc7 {[%emt 0:05:03]} 17. Nc4 $146 {[%emt 0:02:32]} ({Predecessor:} 17. a4 Rb8 18. Nc4 Bb4 19. Nxb4 Nxb4 20. Ba3 Re8 21. f4 Ba6 22. Bxb4 axb4 23. Nxe5 Nxe5 {½-½ McNab,C (2460)-Grant,J (2255) SCO-chT1 Scotland 1994}) 17... Bd6 {[%emt 0:10:41]} (17... f6 $1 $11) 18. a4 {[%emt 0:12:10]} (18. b4 $14) 18... Rb8 $11 {[%emt 0:00:24]} 19. f4 {[%emt 0:00:06]} Bb7 {[%emt 0:06:42]} (19... exf4 20. Nxd6 Qxd6 21. Bxf4 $11 (21. gxf4 Bb7 $17)) (19... Ba6 $15) 20. N2a3 {[%emt 0:04:05]} ({Better is} 20. Nxd6 $1 $14 Qxd6 21. Ba3) 20... Bb4 {[%emt 0:08:36]} (20... exf4 $2 21. Nb5 $18) 21. Nb5 {[%emt 0:03:50]} Qd8 {[%emt 0:00:06]} 22. Bd2 {[%emt 0:01:50]} exf4 {[%emt 0:01:29]} 23. Bxf4 {[%emt 0:03:06]} Bxe1 {[%emt 0:00:08]} 24. Bxb8 (24. Qxe1 {with more complications.} Re8 25. Qd1 Nce5 26. Bxb7 Rxb7 27. Nbd6) 24... Qxb8 {[%emt 0:01:12]} (24... Ncxb8 $11 {remains equal.} 25. Bxb7 (25. Qxe1 Bxg2 26. Kxg2 Nc6 $11) 25... Bb4) 25. Qxe1 $16 {[%emt 0:00:44]} Nc5 {[%emt 0:06:25]} 26. Qd2 {[%emt 0:05:42]} Rd8 {[%emt 0:02:07]} (26... g6 $11) 27. Rf1 $14 {[%emt 0:01:56]} Ne5 {[%emt 0:08:51]} 28. Bxb7 {[%emt 0:01:22]} Nxb7 {[%emt 0:02:37]} 29. Qf4 {[%emt 0:04:52]} (29. Nxa5 Nc5 $11) 29... f6 {[%emt 0:00:10]} 30. Nxe5 {[%emt 0:00:54]} (30. Nxd4 Qa7 31. Nxe5 Qxd4+ 32. Qxd4 Rxd4 $11) 30... Qxe5 {[%emt 0:00:08]} 31. Qxe5 {[%emt 0:00:21]} fxe5 {[%emt 0:00:04]} 32. Rc1 {[%emt 0:00:04]} Nd6 {[%emt 0:03:36]} 33. Nxd6 {[%emt 0:01:10]} Rxd6 {[%emt 0:00:05]} 34. Rc5 {[%emt 0:00:03]} e4 {[%emt 0:00:43]} (34... Rb6 35. Rb5 (35. Rxa5 Rxb3 36. Rxe5 Rxd3 $11) 35... Re6 (35... Rxb5 $2 36. axb5 Kf7 37. b6 $18) 36. Rxa5 $18) 35. Kf1 $1 {[%emt 0:02:02]} (35. Rxa5 exd3 36. Kf2 Re6 $19) 35... e3 {[%emt 0:04:28]} 36. Rxa5 {[%emt 0:00:18]} Rc6 {[%emt 0:00:04]} 37. Rd5 {[%emt 0:01:10]} Rc1+ $1 {[%emt 0:00:04]} 38. Ke2 {[%emt 0:00:10]} Rc2+ {[%emt 0:00:11]} 39. Ke1 {[%emt 0:00:18]} (39. Kf3 Rf2+ 40. Kg4 (40. Ke4 $2 e2 $19) 40... Rf6 (40... Rxh2 41. Rxd4 Rb2 42. Kf3 $16) (40... e2 41. Re5 $14)) (39. Kd1 $5 Rd2+ $8 40. Ke1 Rxd3 41. a5 Rxb3 42. Rd8+ (42. Rxd4 Ra3 $11) 42... Kf7 43. Rxd4 $14) 39... Rc1+ $1 {[%emt 0:00:04]} 40. Ke2 {[%emt 0:00:02]} Rc2+ {[%emt 0:00:07]} 41. Kf3 {[%emt 0:01:35]} (41. Ke1 $5 Rc1+ $8 42. Ke2 $11) 41... Rf2+ {[%emt 0:00:22]} 42. Kg4 $1 {[%emt 0:00:03]} ({Don't go for} 42. Ke4 $2 e2 43. Kxd4 e1=Q $19 (43... e1=B 44. Re5 $11)) 42... Rf1 {[%emt 0:00:16]} ({Don't play} 42... Rxh2 $6 43. Rxd4 Rb2 44. Kf3 $16) ({Much weaker is} 42... e2 43. Re5 $14) 43. Re5 $1 {[%emt 0:00:40]} Rb1 {[%emt 0:01:07]} 44. a5 {[%emt 0:00:46]} Rxb3 {[%emt 0:00:44]} 45. Re4 {[%emt 0:00:31]} Rxd3 {[%emt 0:01:13]} 46. a6 {[%emt 0:00:30]} Ra3 {[%emt 0:00:23]} 47. Kf3 {[%emt 0:00:27]} Rxa6 {[%emt 0:04:33]} 48. Rxd4 {[%emt 0:00:03]} Ra2 {[%emt 0:00:37]} 49. h3 {[%emt 0:01:00]} e2 {[%emt 0:00:03]} 50. Re4 {[%emt 0:00:04]} Kf7 {[%emt 0:01:05]} 51. Rxe2 {[%emt 0:00:05]} Rxe2 {[%emt 0:00:04]} 52. Kxe2 {[%emt 0:00:04]} Ke6 {[%emt 0:00:05]} 1/2-1/2

[Event "SixDays Budapest GM-A January 2024"]
[Site "Budapest"]
[Date "2024.01.31"]
[Round "7.4"]
[White "Nagy, Gabor"]
[Black "Durak, Can"]
[Result "1/2-1/2"]
[ECO "D40"]
[WhiteElo "2450"]
[BlackElo "2349"]
[Annotator "TA"]
[PlyCount "35"]
[EventDate "2024.01.26"]
[EventType "tourn"]
[EventCountry "HUN"]
[SourceTitle "playchess.com"]
[Source "ChessBase"]
[SourceQuality "1"]
[TimeControl "5400+30"]

{[%evp 11,35,0,30,8,15,15,14,8,10,11,18,15,18,4,10,14,16,9,25,22,35,38,36,15,27,27]} 1. d4 {[%emt 0:00:04]} Nf6 {[%emt 0:07:50]} 2. c4 {[%emt 0:00:22]} e6 {[%emt 0:00:21]} 3. Nc3 {[%emt 0:00:24]} d5 {[%emt 0:00:11]} 4. Nf3 {[%emt 0:00:33]} c5 {[%emt 0:00:12]} 5. Bf4 {[%emt 0:01:12]} cxd4 {[%emt 0:08:58]} 6. Nxd4 {[%emt 0:00:35]} Nc6 {[%emt 0:08:45]} 7. e3 {[%emt 0:02:30]} Be7 {[%emt 0:06:43]} 8. Be2 {[%emt 0:06:01]} O-O {[%emt 0:01:52]} 9. Nxc6 {[%emt 0:03:05] The position is equal.} bxc6 {[%emt 0:00:14]} 10. O-O {[%emt 0:00:09]} Bd6 {[%emt 0:04:18]} 11. Bxd6 {[%emt 0:04:27]} Qxd6 {[%emt 0:00:09]} 12. Qc2 {[%emt 0:00:44]} a5 {[%emt 0:02:24]} 13. Rfd1 {[%emt 0:01:42]} Ba6 {[%emt 0:01:29]} 14. Rac1 {[%emt 0:01:06]} Qe5 {[%emt 0:11:19]} 15. b3 {[%emt 0:10:11]} dxc4 {[%emt 0:01:51]} 16. bxc4 {[%emt 0:00:28]} Rab8 {[%emt 0:01:41]} 17. h3 {[%emt 0:00:30]} g6 {[%emt 0:07:15]} 18. Rb1 {[%emt 0:05:23] Weighted Error Value: White=0.05 (flawless) /Black=0.09 (flawless) .  OK:         	White=7     	Black=2} 1/2-1/2

[Event "SixDays Budapest GM-A January 2024"]
[Site "Budapest"]
[Date "2024.01.31"]
[Round "7.5"]
[White "Sedlak, Nikola"]
[Black "Pham Tran Gia Phuc"]
[Result "0-1"]
[ECO "A06"]
[WhiteElo "2463"]
[BlackElo "2416"]
[Annotator "TA"]
[PlyCount "78"]
[EventDate "2024.01.26"]
[EventType "tourn"]
[EventCountry "HUN"]
[SourceTitle "playchess.com"]
[Source "ChessBase"]
[SourceQuality "1"]
[TimeControl "5400+30"]

{[%evp 9,78,-1,6,0,-5,0,4,0,0,0,0,0,15,12,24,5,10,8,19,16,18,-14,-16,-28,-23,-53,-48,-66,-64,-102,-109,-113,-100,-104,-46,-49,-41,-46,-43,-44,-44,-46,-46,-55,-55,-55,-55,-55,-55,-53,-43,-43,-37,-43,-43,-43,-34,-45,0,-42,-20,-20,-16,-20,-20,-20,-20,-20,-28,-5085,-2454]} 1. Nf3 {[%emt 0:04:43]} d5 {[%emt 0:00:07]} 2. e3 {[%emt 0:00:14]} c5 {[%emt 0:00:08]} 3. b3 {[%emt 0:00:12]} Nf6 {[%emt 0:00:11]} 4. Bb2 {[%emt 0:00:13]} g6 {[%emt 0:00:08]} 5. Bb5+ {[%emt 0:00:49]} Bd7 {[%emt 0:00:13]} 6. Bxf6 {[%emt 0:00:42]} exf6 {[%emt 0:00:08]} 7. Bxd7+ {[%emt 0:00:18]} Qxd7 {[%emt 0:00:07]} 8. d4 {[%emt 0:00:21] The position is equal.} Bg7 {[%emt 0:02:04]} 9. Nc3 {[%emt 0:02:35]} f5 {[%emt 0:01:05]} 10. Ne2 {[%emt 0:00:19]} Nc6 {[%emt 0:01:07]} 11. c3 {[%emt 0:01:05]} b6 {[%emt 0:10:08]} 12. O-O {[%emt 0:00:46]} O-O {[%emt 0:00:39]} 13. Qd3 {[%emt 0:05:25]} Rfd8 {[%emt 0:07:19]} 14. Rfd1 {[%emt 0:01:26]} Rac8 {[%emt 0:04:44]} 15. Rac1 {[%emt 0:00:44] [#]} c4 $1 {[%emt 0:01:37]} 16. bxc4 {[%emt 0:00:42]} (16. Qc2 Na5) 16... dxc4 {[%emt 0:00:10]} 17. Qb1 {[%emt 0:00:18]} ({Much weaker is} 17. Qxc4 Nxd4 18. Qa6 Nxe2+ 19. Qxe2 Rxc3 $17) 17... Ne7 {[%emt 0:02:08]} 18. Nf4 {[%emt 0:05:36]} Bh6 {[%emt 0:01:57]} 19. Re1 {[%emt 0:03:27]} Bxf4 {[%emt 0:01:49]} 20. exf4 {[%emt 0:00:05]} Nd5 {[%emt 0:00:08]} 21. g3 {[%emt 0:00:09]} f6 {[%emt 0:01:10]} (21... a5 $17 22. h4 b5) 22. Nd2 $15 {[%emt 0:00:47]} Kg7 {[%emt 0:09:17]} 23. Qb2 {[%emt 0:01:31]} b5 {[%emt 0:01:01][%cal Ob5b4]} 24. Nf1 {[%emt 0:00:33]} Re8 {[%emt 0:06:09]} 25. Ne3 {[%emt 0:02:32]} Nxe3 {[%emt 0:00:49]} 26. fxe3 {[%emt 0:00:07]} a5 {[%emt 0:02:22]} 27. a3 {[%emt 0:01:51]} Rb8 {[%emt 0:01:00] White is weak on the light squares} 28. Rb1 {[%emt 0:00:44]} Qd6 {[%emt 0:01:41]} 29. Re2 {[%emt 0:00:40]} Rb7 {[%emt 0:03:21]} 30. Qc1 {[%emt 0:02:26]} Ree7 {[%emt 0:02:28]} 31. Kf2 {[%emt 0:00:36]} Rec7 {[%emt 0:04:26]} 32. Rc2 {[%emt 0:01:01]} Qe7 {[%emt 0:04:16]} 33. Rd2 {[%emt 0:01:05]} Rd7 {[%emt 0:06:18]} 34. Ra1 {[%emt 0:02:16]} b4 {[%emt 0:05:44]} 35. axb4 {[%emt 0:06:18]} axb4 {[%emt 0:00:08]} 36. cxb4 {[%emt 0:00:05]} Rxb4 {[%emt 0:00:05]} 37. Qa3 {[%emt 0:05:25]} Rdb7 {[%emt 0:06:27] And now ...Qe4 would win.} 38. d5 $1 {[%emt 0:04:46]} Qe4 {[%emt 0:00:06]} 39. Qc3 $2 {[%emt 0:05:49][%mdl 8192] [#]} (39. d6 $11 Rb3 40. Qc5) 39... Rb1 {[%emt 0:01:34] Weighted Error Value: White=0.28 (precise) /Black=0.06 (flawless) .  Loses game:     	White=1     	---        Mistake:       	---       	Black=1      Inaccurate:     	White=4     	Black=1      OK:         	White=10    	Black=14     Best:        	White=2     	Black=2      Strong:       	White=1     	---} 0-1

[Event "SixDays Budapest GM-A January 2024"]
[Site "Budapest"]
[Date "2024.01.31"]
[Round "8.1"]
[White "Can, Isik"]
[Black "Pham Tran Gia Phuc"]
[Result "1/2-1/2"]
[ECO "B42"]
[WhiteElo "2500"]
[BlackElo "2416"]
[Annotator "RC"]
[PlyCount "35"]
[EventDate "2024.01.26"]
[EventType "tourn"]
[EventCountry "HUN"]
[SourceTitle "playchess.com"]
[Source "ChessBase"]
[SourceQuality "1"]
[TimeControl "5400+30"]

1. e4 {[%emt 0:02:34]} c5 {[%emt 0:00:28]} 2. Nf3 {[%emt 0:00:06]} e6 {[%emt 0:00:05]} 3. d4 {[%emt 0:00:05]} cxd4 {[%emt 0:00:05]} 4. Nxd4 {[%emt 0:00:03]} a6 {[%emt 0:00:09]} 5. Bd3 {[%emt 0:00:05]} Bc5 {[%emt 0:00:07]} 6. Nb3 {[%emt 0:00:02]} Ba7 {[%emt 0:00:09]} 7. Qg4 {[%emt 0:00:04]} Nf6 {[%emt 0:00:30]} 8. Qg3 {[%emt 0:00:02]} d6 {[%emt 0:00:10]} 9. Nc3 {[%emt 0:00:16]} Nc6 {[%emt 0:01:22]} 10. a3 {[%emt 0:00:36]} Ne5 {[%emt 0:00:49]} 11. Be2 {[%emt 0:07:45]} h5 {[%emt 0:09:13]} 12. Bg5 {[%emt 0:01:10]} h4 {[%emt 0:08:59]} 13. Bxh4 {[%emt 0:03:12]} Nxe4 {[%emt 0:00:28]} 14. Nxe4 {[%emt 0:00:59]} Qxh4 {[%emt 0:00:16]} 15. Nxd6+ {[%emt 0:08:28]} Ke7 {[%emt 0:00:06]} 16. O-O-O {[%emt 0:27:05]} Qxg3 {[%emt 0:02:39]} 17. Nxc8+ {[%emt 0:00:06]} Raxc8 {[%emt 0:00:07]} 18. fxg3 {[%emt 0:00:04]} 1/2-1/2